fUSD/lending_fUSD_20251210
["ID","MTS","AMOUNT","RATE_DAILY","PERIOD"]
[398093298,1765363914174,-2704.59,0.0001726,2]
[398093299,1765363914184,-1311.95,0.0001726,2]
[398093300,1765363914194,-672.92,0.0001726,2]
[398093301,1765363914203,-500.0,0.0001726,2]
[398093302,1765363914213,-500.0,0.0001726,2]
[398093303,1765363914223,-500.0,0.0001726,2]
[398093304,1765363914233,-536.09,0.0001726,2]
[398093305,1765363914243,-636.09,0.0001726,2]
[398093306,1765363914252,-500.0,0.0001726,2]
[398093307,1765363914263,-518.62,0.0001726,2]
[398093308,1765363914272,-2690.76,0.0001726,2]
[398093309,1765363914282,-500.0,0.0001726,2]
[398093310,1765363914291,-539.25,0.0001726,2]
[398093311,1765363914301,-500.0,0.0001726,2]
[398093312,1765363914310,-669.46,0.0001726,2]
[398093313,1765363914320,-500.0,0.0001726,2]
[398093314,1765363914329,-419.07552851,0.0001726,2]
[398093315,1765363914339,-449.34159264,0.0001726,2]
[398093316,1765363914349,-500.0,0.0001726,2]
[398093317,1765363914359,-500.0,0.0001726,2]
[398093318,1765363914369,-482.8962,0.0001726,2]
[398093319,1765363914381,-522.23,0.0001726,2]
[398093320,1765363914391,-633.04,0.0001726,2]
[398093321,1765363914401,-500.0,0.0001726,2]
[398093322,1765363914412,-854.51,0.0001726,2]
[398093323,1765363914423,-500.0,0.0001726,2]
[398093324,1765363914432,-600.0,0.0001726,2]
[398093325,1765363914442,-500.0,0.00017293,2]
[398093326,1765363914452,-500.0,0.00017294,2]
[398093327,1765363914462,-500.0,0.00017295,2]
[398093328,1765363914472,-500.0,0.00017296,2]
[398093329,1765363914482,-500.0,0.00017297,2]
[398093330,1765363914492,-500.0,0.00017298,2]
[398093331,1765363914501,-500.0,0.00017299,2]
[398093332,1765363914512,-500.0,0.000173,2]
[398093333,1765363914522,-500.0,0.00017301,2]
[398093334,1765363914533,-695.432084,0.00017302,2]
[398093335,1765363914543,-183.57573129,0.00017312,2]
[398093336,1765363914553,-1402.55574785,0.00017314,2]
[398093337,1765363914563,-308.0,0.00017365,2]
[398093338,1765363914572,-1301.0,0.00017382,2]
[398093339,1765363914582,-554.65,0.00017428,2]
[398093340,1765363914593,-242.067,0.00017429,2]
[398093341,1765363914602,-1323.0,0.00017429,2]
[398093342,1765363914612,-4099.317,0.00017429,2]
[398093343,1765363914621,-72815.68,0.000175,6]
[398093344,1765363914631,-26861.4,0.000175,6]
[398093345,1765363914641,-4940.47,0.000175,6]
[398093346,1765363914652,-15561.2,0.000175,6]
[398093347,1765363914661,-4609.0,0.00017503,2]
[398093348,1765363914673,-300.0,0.00017533,2]
[398093349,1765363914682,-500.0,0.00017534,2]
[398093350,1765363914692,-500.0,0.00017534,2]
[398093351,1765363914702,-947.85,0.00017534,2]
[398093352,1765363914712,-500.0,0.00017534,2]
[398093353,1765363914722,-500.0,0.00017534,2]
[398093354,1765363914732,-166.47800081,0.00017534,2]
[398093355,1765363914743,-587.0,0.00017534,2]
[398093356,1765363914753,-500.0,0.00017534,2]
[398093357,1765363914763,-500.0,0.00017534,2]
[398093358,1765363914773,-500.0,0.00017534,2]
[398093359,1765363914783,-500.0,0.00017534,2]
[398093360,1765363914792,-500.0,0.00017534,2]
[398093361,1765363914802,-501.33,0.00017534,2]
[398093362,1765363914812,-576.82,0.00017534,2]
[398093363,1765363914822,-500.0,0.00017534,2]
[398093364,1765363914832,-400.22982001,0.00017534,2]
[398093365,1765363914841,-532.94,0.00017534,2]
[398093366,1765363914851,-526.76,0.00017534,2]
[398093367,1765363914860,-685.62,0.00017534,2]
[398093368,1765363914870,-500.0,0.00017534,2]
[398093369,1765363914879,-500.0,0.00017534,2]
[398093370,1765363914889,-778.96,0.00017534,2]
[398093371,1765363914899,-500.0,0.00017534,2]
[398093372,1765363914908,-500.0,0.00017534,2]
[398093373,1765363914918,-594.25,0.00017534,2]
[398093374,1765363914927,-500.0,0.00017534,2]
[398093375,1765363914936,-695.24,0.00017534,2]
[398093376,1765363914945,-500.0,0.00017534,2]
[398093377,1765363914955,-323.34350887,0.00017534,2]
[398093378,1765363914964,-300.0,0.00017534,2]
[398093379,1765363914977,-571.54,0.00017534,2]
[398093380,1765363914987,-500.0,0.00017534,2]
[398093381,1765363914998,-500.0,0.00017534,2]
[398093382,1765363915009,-500.0,0.00017534,2]
[398093383,1765363915020,-500.0,0.00017534,2]
[398093384,1765363915031,-500.0,0.00017534,2]
[398093385,1765363915043,-537.71,0.00017534,2]
[398093386,1765363915055,-526.55,0.00017534,2]
[398093387,1765363915066,-622.54,0.00017534,2]
[398093388,1765363915078,-500.0,0.00017534,2]
[398093389,1765363915088,-500.0,0.00017534,2]
[398093390,1765363915098,-569.43,0.00017534,2]
[398093391,1765363915107,-500.0,0.00017534,2]
[398093392,1765363915116,-500.0,0.00017534,2]
[398093393,1765363915125,-614.97,0.00017534,2]
[398093394,1765363915135,-500.0,0.00017534,2]
[398093395,1765363915144,-500.0,0.00017534,2]
[398093396,1765363915153,-182.10188862,0.00017534,2]
[398093397,1765363915163,-500.0,0.00017534,2]
[398093398,1765363915172,-333.71656934,0.00017534,2]
[398093399,1765363915182,-521.75,0.00017534,2]
[398093400,1765363915191,-691.35,0.00017534,2]
[398093401,1765363915200,-413.3657201,0.00017534,2]
[398093402,1765363915210,-500.0,0.00017534,2]
[398093403,1765363915219,-500.0,0.00017534,2]
[398093404,1765363915228,-831.61,0.00017534,2]
[398093405,1765363915238,-580.62,0.00017534,2]
[398093406,1765363915247,-607.34,0.00017534,2]
[398093407,1765363915256,-558.66,0.00017534,2]
[398093408,1765363915266,-569.13812178,0.00017534,2]
[398093409,1765363915275,-500.0,0.00017534,2]
[398093410,1765363915285,-687.2,0.00017534,2]
[398093411,1765363915294,-697.92,0.00017534,2]
[398093412,1765363915306,-663.24,0.00017534,2]
[398093413,1765363915316,-500.0,0.00017534,2]
[398093414,1765363915325,-500.0,0.00017534,2]
[398093415,1765363915335,-632.86,0.00017534,2]
[398093416,1765363915344,-183.96757949,0.00017534,2]
[398093417,1765363915353,-516.81,0.00017534,2]
[398093418,1765363915362,-528.53,0.00017534,2]
[398093419,1765363915371,-588.94,0.00017534,2]
[398093420,1765363915381,-575.19,0.00017534,2]
[398093421,1765363915392,-550.51,0.00017534,2]
[398093422,1765363915401,-520.64,0.00017534,2]
[398093423,1765363915411,-1386.52,0.00017534,2]
[398093424,1765363915420,-500.0,0.00017534,2]
[398093425,1765363915431,-626.72,0.00017534,2]
[398093426,1765363915442,-540.35,0.00017534,2]
[398093427,1765363915451,-294.64180837,0.00017534,2]
[398093428,1765363915462,-500.0,0.00017534,2]
[398093429,1765363915473,-500.0,0.00017534,2]
[398093430,1765363915484,-500.0,0.00017534,2]
[398093431,1765363915556,-1096.94,0.00017534,2]
[398093432,1765363915566,-547.45,0.00017534,2]
[398093433,1765363915576,-1026.31,0.00017534,2]
[398093434,1765363915585,-500.0,0.00017534,2]
[398093435,1765363915595,-500.0,0.00017534,2]
[398093436,1765363915603,-500.0,0.00017534,2]
[398093437,1765363915613,-851.24,0.00017534,2]
[398093438,1765363915622,-504.48,0.00017534,2]
[398093439,1765363915631,-500.0,0.00017534,2]
[398093440,1765363915640,-500.0,0.00017534,2]
[398093441,1765363915649,-522.11,0.00017534,2]
[398093442,1765363915658,-500.0,0.00017534,2]
[398093443,1765363915667,-500.0,0.00017534,2]
[398093444,1765363915676,-610.27,0.00017534,2]
[398093445,1765363915685,-687.03,0.00017534,2]
[398093446,1765363915696,-500.0,0.00017534,2]
[398093447,1765363915705,-500.0,0.00017534,2]
[398093448,1765363915714,-500.0,0.00017534,2]
[398093449,1765363915723,-500.0,0.00017534,2]
[398093450,1765363915733,-659.53,0.00017534,2]
[398093451,1765363915743,-1423.99,0.00017534,2]
[398093452,1765363915753,-605.66,0.00017534,2]
[398093453,1765363915763,-500.0,0.00017534,2]
[398093454,1765363915773,-500.0,0.00017534,2]
[398093455,1765363915782,-535.23,0.00017534,2]
[398093456,1765363915792,-500.0,0.00017534,2]
[398093457,1765363915803,-500.0,0.00017534,2]
[398093458,1765363915812,-943.64,0.00017534,2]
[398093459,1765363915822,-605.73,0.00017534,2]
[398093460,1765363915831,-694.43,0.00017534,2]
[398093461,1765363915842,-157.0,0.00017534,2]
[398093462,1765363915851,-2000.0,0.00017534,2]
[398093463,1765363915860,-534.57,0.00017534,2]
[398093464,1765363915870,-500.0,0.00017534,2]
[398093465,1765363915879,-637.14,0.00017534,2]
[398093466,1765363915888,-500.0,0.00017534,2]
[398093467,1765363915897,-500.0,0.00017534,2]
[398093468,1765363915907,-500.0,0.00017534,2]
[398093469,1765363915916,-500.0,0.00017534,2]
[398093470,1765363915925,-1035.09,0.00017534,2]
[398093471,1765363915934,-500.0,0.00017534,2]
[398093472,1765363915943,-638.9,0.00017534,2]
[398093473,1765363915953,-590.56,0.00017534,2]
[398093474,1765363915963,-500.0,0.00017534,2]
[398093475,1765363915972,-823.36,0.00017534,2]
[398093476,1765363915985,-610.31,0.00017534,2]
[398093477,1765363915995,-467.96948919,0.00017534,2]
[398093478,1765363916005,-500.0,0.00017534,2]
[398093479,1765363916015,-500.0,0.00017534,2]
[398093480,1765363916024,-620.79,0.00017534,2]
[398093481,1765363916034,-888.67,0.00017534,2]
[398093482,1765363916044,-500.0,0.00017534,2]
[398093483,1765363916056,-500.0,0.00017534,2]
[398093484,1765363916064,-500.0,0.00017534,2]
[398093485,1765363916074,-601.0,0.00017534,2]
[398093486,1765363916086,-500.0,0.00017534,2]
[398093487,1765363916095,-619.05,0.00017534,2]
[398093488,1765363916105,-500.0,0.00017534,2]
[398093489,1765363916121,-718.66,0.00017534,2]
[398093490,1765363916139,-522.38,0.00017534,2]
[398093491,1765363916151,-575.76,0.00017534,2]
[398093492,1765363916161,-500.0,0.00017534,2]
[398093493,1765363916173,-528.5,0.00017534,2]
[398093494,1765363916184,-500.0,0.00017534,2]
[398093495,1765363916194,-500.0,0.00017534,2]
[398093496,1765363916206,-500.0,0.00017534,2]
[398093497,1765363916216,-500.0,0.00017534,2]
[398093498,1765363916226,-500.0,0.00017534,2]
[398093499,1765363916236,-582.05,0.00017534,2]
[398093500,1765363916245,-500.0,0.00017534,2]
[398093501,1765363916256,-1023.47,0.00017534,2]
[398093502,1765363916266,-500.0,0.00017534,2]
[398093503,1765363916275,-2989.18,0.00017534,2]
[398093504,1765363916285,-500.0,0.00017534,2]
[398093505,1765363916294,-555.46,0.00017534,2]
[398093506,1765363916305,-500.0,0.00017534,2]
[398093507,1765363916315,-500.0,0.00017534,2]
[398093508,1765363916324,-1304.2,0.00017534,2]
[398093509,1765363916334,-729.87,0.00017534,2]
[398093510,1765363916343,-2869.58,0.00017534,2]
[398093511,1765363916353,-500.0,0.00017534,2]
[398093512,1765363916364,-501.94,0.00017534,2]
[398093513,1765363916375,-221.1846002,0.00017534,2]
[398093514,1765363916385,-500.0,0.00017534,2]
[398093515,1765363916395,-658.56,0.00017534,2]
[398093516,1765363916404,-500.0,0.00017534,2]
[398093517,1765363916414,-548.02,0.00017534,2]
[398093518,1765363916423,-500.0,0.00017534,2]
[398093519,1765363916432,-500.0,0.00017534,2]
[398093520,1765363916441,-500.0,0.00017534,2]
[398093521,1765363916450,-500.0,0.00017534,2]
[398093522,1765363916459,-500.0,0.00017534,2]
[398093523,1765363916468,-970.77,0.00017534,2]
[398093524,1765363916478,-212.09451705,0.00017534,2]
[398093525,1765363916487,-1025.9,0.00017534,2]
[398093526,1765363916496,-213.47845298,0.00017534,2]
[398093527,1765363916505,-540.25,0.00017534,2]
[398093528,1765363916514,-555.46,0.00017534,2]
[398093529,1765363916523,-251.42763441,0.00017534,2]
[398093530,1765363916532,-832.02,0.00017534,2]
[398093531,1765363916542,-635.2,0.00017534,2]
[398093532,1765363916551,-500.0,0.00017534,2]
[398093533,1765363916560,-515.11,0.00017534,2]
[398093534,1765363916569,-557.58,0.00017534,2]
[398093535,1765363916579,-695.06,0.00017534,2]
[398093536,1765363916588,-520.93,0.00017534,2]
[398093537,1765363916597,-500.0,0.00017534,2]
[398093538,1765363916607,-762.87,0.00017534,2]
[398093539,1765363916616,-2138.7,0.00017534,2]
[398093540,1765363916626,-1364.77,0.00017534,2]
[398093541,1765363916635,-572.05,0.00017534,2]
[398093542,1765363916645,-500.0,0.00017534,2]
[398093543,1765363916656,-500.0,0.00017534,2]
[398093544,1765363916666,-765.27,0.00017534,2]
[398093545,1765363916675,-516.6,0.00017534,2]
[398093546,1765363916686,-500.0,0.00017534,2]
[398093547,1765363916695,-951.41,0.00017534,2]
[398093548,1765363916705,-679.67,0.00017534,2]
[398093549,1765363916717,-500.0,0.00017534,2]
[398093550,1765363916733,-718.05,0.00017534,2]
[398093551,1765363916743,-729.92,0.00017534,2]
[398093552,1765363916753,-500.0,0.00017534,2]
[398093553,1765363916763,-531.49,0.00017534,2]
[398093554,1765363916773,-500.0,0.00017534,2]
[398093555,1765363916783,-500.0,0.00017534,2]
[398093556,1765363916793,-503.74,0.00017534,2]
[398093557,1765363916803,-641.54,0.00017534,2]
[398093558,1765363916813,-1067.97,0.00017534,2]
[398093559,1765363916823,-528.18120005,0.00017534,2]
[398093560,1765363916833,-539.19,0.00017534,2]
[398093561,1765363916843,-500.0,0.00017534,2]
[398093562,1765363916853,-2594.14,0.00017534,2]
[398093563,1765363916863,-500.0,0.00017534,2]
[398093564,1765363916872,-500.0,0.00017534,2]
[398093565,1765363916881,-500.0,0.00017534,2]
[398093566,1765363916892,-545.18,0.00017534,2]
[398093567,1765363916901,-1000.0,0.00017534,2]
[398093568,1765363916913,-1366.9,0.00017534,2]
[398093569,1765363916923,-780.91,0.00017534,2]
[398093570,1765363916932,-904.37,0.00017534,2]
[398093571,1765363916942,-500.0,0.00017534,2]
[398093572,1765363916951,-1011.3,0.00017534,2]
[398093573,1765363916961,-1977.85,0.00017534,2]
[398093574,1765363916971,-198.25615075,0.00017534,2]
[398093575,1765363916987,-674.04,0.00017534,2]
[398093576,1765363916997,-530.92,0.00017534,2]
[398093577,1765363917008,-515.73,0.00017534,2]
[398093578,1765363917021,-500.0,0.00017534,2]
[398093579,1765363917030,-500.0,0.00017534,2]
[398093580,1765363917040,-500.0,0.00017534,2]
[398093581,1765363917050,-618.95,0.00017534,2]
[398093582,1765363917060,-746.65,0.00017534,2]
[398093583,1765363917069,-500.0,0.00017534,2]
[398093584,1765363917078,-500.0,0.00017534,2]
[398093585,1765363917087,-500.0,0.00017534,2]
[398093586,1765363917097,-562.39,0.00017534,2]
[398093587,1765363917106,-514.85,0.00017534,2]
[398093588,1765363917116,-500.0,0.00017534,2]
[398093589,1765363917125,-594.84,0.00017534,2]
[398093590,1765363917134,-2704.59,0.00017534,2]
[398093591,1765363917144,-1311.95,0.00017534,2]
[398093592,1765363917153,-672.92,0.00017534,2]
[398093593,1765363917163,-500.0,0.00017534,2]
[398093594,1765363917172,-500.0,0.00017534,2]
[398093595,1765363917182,-500.0,0.00017534,2]
[398093596,1765363917191,-536.09,0.00017534,2]
[398093597,1765363917200,-636.09,0.00017534,2]
[398093598,1765363917210,-500.0,0.00017534,2]
[398093599,1765363917219,-518.62,0.00017534,2]
[398093600,1765363917228,-2690.76,0.00017534,2]
[398093601,1765363917238,-432.89935753,0.00017534,2]
[398093602,1765363917248,-539.25,0.00017534,2]
[398093603,1765363917257,-500.0,0.00017534,2]
[398093604,1765363917267,-669.46,0.00017534,2]
[398093605,1765363917277,-500.0,0.00017534,2]
[398093606,1765363917286,-500.0,0.00017534,2]
[398093607,1765363917296,-500.0,0.00017534,2]
[398093608,1765363917305,-522.23,0.00017534,2]
[398093609,1765363917315,-633.04,0.00017534,2]
[398093610,1765363917324,-500.0,0.00017534,2]
[398093611,1765363917334,-854.51,0.00017534,2]
[398093612,1765363917344,-506.02614077,0.00017534,2]
[398093613,1765363917353,-600.0,0.00017534,2]
[398093614,1765363917363,-151.3260776,0.000176,2]
[398093615,1765363917374,-150.0,0.00017604,2]
[398093616,1765363917383,-1252.0,0.00017675,2]
[398093617,1765363917394,-298.0,0.000177,2]
[398093618,1765363917403,-569.95242042,0.000178,2]
[398093619,1765363917413,-500.0,0.00017808,2]
[398093620,1765363917422,-500.0,0.00017808,2]
[398093621,1765363917432,-947.85,0.00017808,2]
[398093622,1765363917441,-500.0,0.00017808,2]
[398093623,1765363917451,-500.0,0.00017808,2]
[398093624,1765363917460,-587.0,0.00017808,2]
[398093625,1765363917469,-500.0,0.00017808,2]
[398093626,1765363917479,-500.0,0.00017808,2]
[398093627,1765363917488,-602.4113806,0.00017808,2]
[398093628,1765363917497,-500.0,0.00017808,2]
[398093629,1765363917506,-500.0,0.00017808,2]
[398093630,1765363917516,-501.33,0.00017808,2]
[398093631,1765363917525,-576.82,0.00017808,2]
[398093632,1765363917534,-500.0,0.00017808,2]
[398093633,1765363917544,-532.94,0.00017808,2]
[398093634,1765363917553,-526.76,0.00017808,2]
[398093635,1765363917563,-685.62,0.00017808,2]
[398093636,1765363917572,-500.0,0.00017808,2]
[398093637,1765363917582,-500.0,0.00017808,2]
[398093638,1765363917591,-778.96,0.00017808,2]
[398093639,1765363917601,-245.05212732,0.00017808,2]
[398093640,1765363917610,-500.0,0.00017808,2]
[398093641,1765363917620,-594.25,0.00017808,2]
[398093642,1765363917629,-500.0,0.00017808,2]
[398093643,1765363917638,-695.24,0.00017808,2]
[398093644,1765363917648,-500.0,0.00017808,2]
[398093645,1765363917657,-300.0,0.00017808,2]
[398093646,1765363917666,-571.54,0.00017808,2]
[398093647,1765363917675,-500.0,0.00017808,2]
[398093648,1765363917685,-500.0,0.00017808,2]
[398093649,1765363917694,-500.0,0.00017808,2]
[398093650,1765363917704,-500.0,0.00017808,2]
[398093651,1765363917713,-500.0,0.00017808,2]
[398093652,1765363917722,-537.71,0.00017808,2]
[398093653,1765363917732,-526.55,0.00017808,2]
[398093654,1765363917741,-622.54,0.00017808,2]
[398093655,1765363917751,-500.0,0.00017808,2]
[398093656,1765363917762,-500.0,0.00017808,2]
[398093657,1765363917772,-569.43,0.00017808,2]
[398093658,1765363917782,-500.0,0.00017808,2]
[398093659,1765363917792,-500.0,0.00017808,2]
[398093660,1765363917801,-614.97,0.00017808,2]
[398093661,1765363917812,-500.0,0.00017808,2]
[398093662,1765363917822,-500.0,0.00017808,2]
[398093663,1765363917833,-500.0,0.00017808,2]
[398093664,1765363917842,-521.75,0.00017808,2]
[398093665,1765363917852,-691.35,0.00017808,2]
[398093666,1765363917862,-500.0,0.00017808,2]
[398093667,1765363917873,-500.0,0.00017808,2]
[398093668,1765363917884,-831.61,0.00017808,2]
[398093669,1765363917894,-580.62,0.00017808,2]
[398093670,1765363917905,-607.34,0.00017808,2]
[398093671,1765363917915,-558.66,0.00017808,2]
[398093672,1765363917924,-500.0,0.00017808,2]
[398093673,1765363917933,-687.2,0.00017808,2]
[398093674,1765363917943,-697.92,0.00017808,2]
[398093675,1765363917953,-663.24,0.00017808,2]
[398093676,1765363917962,-500.0,0.00017808,2]
[398093677,1765363917974,-500.0,0.00017808,2]
[398093678,1765363917985,-632.86,0.00017808,2]
[398093679,1765363917994,-516.81,0.00017808,2]
[398093680,1765363918003,-528.53,0.00017808,2]
[398093681,1765363918014,-588.94,0.00017808,2]
[398093682,1765363918024,-575.19,0.00017808,2]
[398093683,1765363918034,-550.51,0.00017808,2]
[398093684,1765363918044,-520.64,0.00017808,2]
[398093685,1765363918056,-1386.52,0.00017808,2]
[398093686,1765363918066,-500.0,0.00017808,2]
[398093687,1765363918076,-626.72,0.00017808,2]
[398093688,1765363918085,-540.35,0.00017808,2]
[398093689,1765363918095,-500.0,0.00017808,2]
[398093690,1765363918104,-500.0,0.00017808,2]
[398093691,1765363918113,-500.0,0.00017808,2]
[398093692,1765363918123,-1096.94,0.00017808,2]
[398093693,1765363918132,-547.45,0.00017808,2]
[398093694,1765363918142,-1026.31,0.00017808,2]
[398093695,1765363918151,-500.0,0.00017808,2]
[398093696,1765363918160,-500.0,0.00017808,2]
[398093697,1765363918170,-500.0,0.00017808,2]
[398093698,1765363918179,-851.24,0.00017808,2]
[398093699,1765363918189,-504.48,0.00017808,2]
[398093700,1765363918199,-500.0,0.00017808,2]
[398093701,1765363918209,-537.18130406,0.00017808,2]
[398093702,1765363918219,-522.11,0.00017808,2]
[398093703,1765363918229,-200.14175632,0.00017808,2]
[398093704,1765363918239,-196.09542021,0.00017808,2]
[398093705,1765363918249,-610.27,0.00017808,2]
[398093706,1765363918258,-687.03,0.00017808,2]
[398093707,1765363918412,-500.0,0.00017808,2]
[398093708,1765363918430,-500.0,0.00017808,2]
[398093709,1765363918440,-500.0,0.00017808,2]
[398093710,1765363918451,-574.65411694,0.00017808,2]
[398093711,1765363918460,-659.53,0.00017808,2]
[398093712,1765363918470,-1423.99,0.00017808,2]
[398093713,1765363918479,-605.66,0.00017808,2]
[398093714,1765363918488,-473.62085033,0.00017808,2]
[398093715,1765363918496,-515.14466039,0.00017808,2]
[398093716,1765363918506,-535.23,0.00017808,2]
[398093717,1765363918515,-500.0,0.00017808,2]
[398093718,1765363918524,-500.0,0.00017808,2]
[398093719,1765363918533,-943.64,0.00017808,2]
[398093720,1765363918542,-605.73,0.00017808,2]
[398093721,1765363918551,-157.0,0.00017808,2]
[398093722,1765363918560,-694.43,0.00017808,2]
[398093723,1765363918569,-2000.0,0.00017808,2]
[398093724,1765363918578,-534.57,0.00017808,2]
[398093725,1765363918588,-500.0,0.00017808,2]
[398093726,1765363918598,-637.14,0.00017808,2]
[398093727,1765363918607,-500.0,0.00017808,2]
[398093728,1765363918617,-500.0,0.00017808,2]
[398093729,1765363918627,-500.0,0.00017808,2]
[398093730,1765363918637,-500.0,0.00017808,2]
[398093731,1765363918646,-1035.09,0.00017808,2]
[398093732,1765363918655,-500.0,0.00017808,2]
[398093733,1765363918665,-638.9,0.00017808,2]
[398093734,1765363918675,-590.56,0.00017808,2]
[398093735,1765363918685,-500.0,0.00017808,2]
[398093736,1765363918694,-823.36,0.00017808,2]
[398093737,1765363918703,-610.31,0.00017808,2]
[398093738,1765363918713,-500.0,0.00017808,2]
[398093739,1765363918724,-235.78981139,0.00017808,2]
[398093740,1765363918733,-620.79,0.00017808,2]
[398093741,1765363918742,-888.67,0.00017808,2]
[398093742,1765363918751,-500.0,0.00017808,2]
[398093743,1765363918761,-500.0,0.00017808,2]
[398093744,1765363918771,-500.0,0.00017808,2]
[398093745,1765363918780,-601.0,0.00017808,2]
[398093746,1765363918790,-500.0,0.00017808,2]
[398093747,1765363918800,-619.05,0.00017808,2]
[398093748,1765363918810,-500.0,0.00017808,2]
[398093749,1765363918819,-718.66,0.00017808,2]
[398093750,1765363918829,-522.38,0.00017808,2]
[398093751,1765363918838,-575.76,0.00017808,2]
[398093752,1765363918848,-355.45355098,0.00017808,2]
[398093753,1765363918859,-528.5,0.00017808,2]
[398093754,1765363918869,-500.0,0.00017808,2]
[398093755,1765363918879,-204.52253092,0.00017808,2]
[398093756,1765363918888,-500.0,0.00017808,2]
[398093757,1765363918898,-500.0,0.00017808,2]
[398093758,1765363918907,-500.0,0.00017808,2]
[398093759,1765363918917,-582.05,0.00017808,2]
[398093760,1765363918927,-500.0,0.00017808,2]
[398093761,1765363918936,-1023.47,0.00017808,2]
[398093762,1765363918946,-500.0,0.00017808,2]
[398093763,1765363918955,-2989.18,0.00017808,2]
[398093764,1765363918964,-265.20109687,0.00017808,2]
[398093765,1765363918975,-555.46,0.00017808,2]
[398093766,1765363918986,-500.0,0.00017808,2]
[398093767,1765363918995,-500.0,0.00017808,2]
[398093768,1765363919005,-1304.2,0.00017808,2]
[398093769,1765363919015,-729.87,0.00017808,2]
[398093770,1765363919024,-2869.58,0.00017808,2]
[398093771,1765363919034,-500.0,0.00017808,2]
[398093772,1765363919043,-501.94,0.00017808,2]
[398093773,1765363919053,-500.0,0.00017808,2]
[398093774,1765363919063,-658.56,0.00017808,2]
[398093775,1765363919072,-500.0,0.00017808,2]
[398093776,1765363919082,-548.02,0.00017808,2]
[398093777,1765363919092,-500.0,0.00017808,2]
[398093778,1765363919101,-500.0,0.00017808,2]
[398093779,1765363919111,-500.0,0.00017808,2]
[398093780,1765363919120,-241.59583672,0.00017808,2]
[398093781,1765363919129,-165.50164789,0.00017808,2]
[398093782,1765363919138,-970.77,0.00017808,2]
[398093783,1765363919147,-1025.9,0.00017808,2]
[398093784,1765363919157,-540.25,0.00017808,2]
[398093785,1765363919166,-555.46,0.00017808,2]
[398093786,1765363919176,-832.02,0.00017808,2]
[398093787,1765363919185,-635.2,0.00017808,2]
[398093788,1765363919194,-500.0,0.00017808,2]
[398093789,1765363919204,-515.11,0.00017808,2]
[398093790,1765363919213,-557.58,0.00017808,2]
[398093791,1765363919223,-695.06,0.00017808,2]
[398093792,1765363919232,-520.93,0.00017808,2]
[398093793,1765363919241,-500.0,0.00017808,2]
[398093794,1765363919250,-762.87,0.00017808,2]
[398093795,1765363919259,-2138.7,0.00017808,2]
[398093796,1765363919269,-1364.77,0.00017808,2]
[398093797,1765363919278,-572.05,0.00017808,2]